[Event "FIDE World Rapid-ch Open 2018"]
[White "Yuffa, Daniil"]
[Black "Grigoriants, Sergey"]
[Site "St. Petersburg"]
[Round "12.29"]
[Annotator "ChessBase"]
[Result "1/2-1/2"]
[Date "2018.12.28"]
[WhiteElo "2572"]
[BlackElo "2540"]
[PlyCount "91"]
[TimeControl "900+10"]

1. d4 {[%emt 0:0:0]} Nf6 {[%emt 0:0:0]} 2. c4 {[%emt 0:0:0]} e6 {[%emt 0:0:0]} 3. g3 {[%emt 0:0:0]} c5 {[%emt 0:0:39]} 4. d5 {[%emt 0:0:0]} exd5 {[%emt 0:0:8]} 5. cxd5 {[%emt 0:0:0]} d6 {[%emt 0:0:1]} 6. Nc3 {[%emt 0:0:0]} g6 {[%emt 0:0:3]} 7. Bg2 {[%emt 0:0:2]} Bg7 {[%emt 0:0:1]} 8. Nf3 {[%emt 0:0:1]} 0-0 {[%emt 0:0:2]} 9. 0-0 {[%emt 0:0:3]} Re8 {[%emt 0:0:0]} 10. Bf4 {[%emt 0:0:1]} Nh5 {[%emt 0:0:26]} 11. Bg5 {[%emt 0:0:2]} Qd7 {[%emt 0:0:1]} 12. Qb3 {[%emt 0:1:32]} b6 {[%emt 0:0:34]} 13. Rfe1 {[%emt 0:0:40]
} h6 {[%emt 0:0:23]} 14. Bd2 {[%emt 0:1:22]} Na6 {[%emt 0:0:0]} 15. Rad1 {[%emt 0:3:1]} Bb7 {[%emt 0:5:17]} 16. e4 {[%emt 0:0:17]} Nb4 {[%emt 0:0:49]} 17. Bf1 {[%emt 0:1:2]} Ba6 {[%emt 0:0:14]} 18. Bxa6 {[%emt 0:2:10]
} Nxa6 {[%emt 0:0:1]} 19. Nb5 {[%emt 0:0:52]} Nc7 {[%emt 0:0:0]} 20. Nxc7 {[%emt 0:0:2]} Qxc7 {[%emt 0:0:1]} 21. Bc3 {[%emt 0:0:1]} Qd7 {[%emt 0:0:56]} 22. Bxg7 {[%emt 0:0:32]} Nxg7 {[%emt 0:0:2]} 23. e5 {[%emt 0:0:25]
} Re7 {[%emt 0:0:38]} 24. e6 {[%emt 0:1:37]} fxe6 {[%emt 0:0:0]} 25. dxe6 {[%emt 0:0:1]} Rxe6 {[%emt 0:0:2]} 26. Ne5 {[%emt 0:0:38]} Qe8 {[%emt 0:1:53]} 27. Rxd6 {[%emt 0:0:2]} Kh7 {[%emt 0:0:3]} 28. Rxe6 {[%emt 0:0:12]
} Qxe6 {[%emt 0:0:1]} 29. Qxe6 {[%emt 0:0:12]} Nxe6 {[%emt 0:0:0]} 30. Nxg6 {[%emt 0:1:33]} Kxg6 {[%emt 0:0:13]} 31. Rxe6+ {[%emt 0:0:0]} Kf5 {[%emt 0:0:1]} 32. Rxh6 {[%emt 0:1:4]} Rd8 {[%emt 0:0:1]} 33. Rh7 {[%emt 0:0:35]} Rd2 {[%emt 0:0:3]} 34. Rxa7 {[%emt 0:0:19]} Rxb2 {[%emt 0:0:1]
} 35. h4 {[%emt 0:0:23]} b5 {[%emt 0:0:18]} 36. Kg2 {[%emt 0:0:0]} c4 {[%emt 0:0:9]} 37. h5 {[%emt 0:0:48]} Kg5 {[%emt 0:0:15]} 38. g4 {[%emt 0:0:10]} c3 {[%emt 0:0:28]} 39. Kg3 {[%emt 0:0:15]} Rb4 {[%emt 0:0:0]} 40. f4+ {[%emt 0:0:11]} Kh6 {[%emt 0:0:1]} 41. Ra6+ {[%emt 0:0:11]} Kh7 {[%emt 0:0:4]} 42. Ra7+ {[%emt 0:0:3]} Kh8 {[%emt 0:0:17]} 43. Ra8+ {[%emt 0:0:8]
} Kh7 {[%emt 0:0:1]} 44. Ra7+ {[%emt 0:0:13]} Kh8 {[%emt 0:0:0]} 45. Ra8+ {[%emt 0:0:18]} Kh7 {[%emt 0:0:20]} 46. Ra7+ {[%emt 0:0:8]} 1/2-1/2

[Event "FIDE World Rapid-ch Open 2018"]
[White "Mchedlishvili, Mikheil"]
[Black "Moiseenko, Vadim"]
[Site "St. Petersburg"]
[Round "12.30"]
[Annotator "ChessBase"]
[Result "1-0"]
[Date "2018.12.28"]
[WhiteElo "2610"]
[BlackElo "2501"]
[PlyCount "99"]
[TimeControl "900+10"]

1. d4 {[%emt 0:0:0]} d5 {[%emt 0:0:0]} 2. c4 {[%emt 0:0:0]} dxc4 {[%emt 0:0:0]
} 3. Nf3 {[%emt 0:0:8]} a6 {[%emt 0:0:0]} 4. e3 {[%emt 0:0:0]} Bg4 {[%emt 0:0:0]} 5. Bxc4 {[%emt 0:0:10]} e6 {[%emt 0:0:1]} 6. Nc3 {[%emt 0:0:50]
} Nc6 {[%emt 0:0:4]} 7. h3 {[%emt 0:0:34]} Bh5 {[%emt 0:0:2]
} 8. Be2 {[%emt 0:1:7]} Nf6 {[%emt 0:0:12]} 9. g4 {[%emt 0:0:48]} Bg6 {[%emt 0:0:2]
} 10. Nh4 {[%emt 0:0:14]} Be4 {[%emt 0:1:35]} 11. f3 {[%emt 0:0:0]} Nd5 {[%emt 0:1:24]} 12. Ng2 {[%emt 0:2:38]} Bg6 {[%emt 0:0:4]} 13. e4 {[%emt 0:0:6]} Nb6 {[%emt 0:2:51]} 14. Be3 {[%emt 0:0:3]} Be7 {[%emt 0:0:0]} 15. h4 {[%emt 0:1:4]} h6 {[%emt 0:0:35]} 16. Qd2 {[%emt 0:0:32]} Bh7 {[%emt 0:0:42]} 17. g5 {[%emt 0:0:27]} Qd6 {[%emt 0:0:13]} 18. 0-0-0 {[%emt 0:1:40]
} 0-0-0 {[%emt 0:0:13]} 19. gxh6 {[%emt 0:0:23]} gxh6 {[%emt 0:0:0]} 20. Nf4 {[%emt 0:0:14]} Na5 {[%emt 0:2:5]} 21. b3 {[%emt 0:0:12]} e5 {[%emt 0:1:1]} 22. Nfd5 {[%emt 0:0:13]} Nxd5 {[%emt 0:1:10]} 23. Nxd5 {[%emt 0:0:4]
} Qxd5 {[%emt 0:0:21]} 24. exd5 {[%emt 0:0:36]} Ba3+ {[%emt 0:0:0]} 25. Qb2 {[%emt 0:0:0]} Bxb2+ {[%emt 0:0:2]} 26. Kxb2 {[%emt 0:0:0]} Rxd5 {[%emt 0:0:2]} 27. Bxh6 {[%emt 0:3:12]} exd4 {[%emt 0:0:20]} 28. h5 {[%emt 0:0:5]} Bc2 {[%emt 0:3:18]} 29. Kxc2 {[%emt 0:0:24]} Rxh6 {[%emt 0:0:2]
} 30. f4 {[%emt 0:0:1]} Nc6 {[%emt 0:0:6]} 31. Kd2 {[%emt 0:0:0]} Kd8 {[%emt 0:0:10]} 32. Rdg1 {[%emt 0:0:13]} Rf5 {[%emt 0:0:46]} 33. Rh4 {[%emt 0:0:13]} Ke7 {[%emt 0:0:44]} 34. Rg5 {[%emt 0:1:22]} Kf6 {[%emt 0:0:8]
} 35. Rxf5+ {[%emt 0:0:13]} Kxf5 {[%emt 0:0:1]} 36. Kd3 {[%emt 0:0:2]
} Kf6 {[%emt 0:1:46]} 37. Bf3 {[%emt 0:0:15]} Nd8 {[%emt 0:0:0]} 38. Kxd4 {[%emt 0:0:8]} Ne6+ {[%emt 0:0:4]} 39. Ke3 {[%emt 0:0:1]} c6 {[%emt 0:0:1]} 40. Bg4 {[%emt 0:0:21]} Ng7 {[%emt 0:0:10]} 41. Rh2 {[%emt 0:0:10]
} Rh8 {[%emt 0:0:20]} 42. h6 {[%emt 0:0:18]} Ne8 {[%emt 0:0:0]} 43. Kd4 {[%emt 0:0:7]} b6 {[%emt 0:0:19]} 44. Bf3 {[%emt 0:0:18]} c5+ {[%emt 0:0:8]} 45. Kd5 {[%emt 0:0:4]} Kf5 {[%emt 0:0:1]} 46. Rh4 {[%emt 0:0:22]
} Nc7+ {[%emt 0:0:39]} 47. Kc6 {[%emt 0:0:1]} Ne6 {[%emt 0:0:0]} 48. Bg4+ {[%emt 0:0:5]} Ke4 {[%emt 0:0:12]} 49. Bxe6 {[%emt 0:0:2]} fxe6 {[%emt 0:0:1]} 50. Kxb6 {[%emt 0:0:2]} 1-0

[Event "FIDE World Rapid-ch Open 2018"]
[White "Tang, Andrew"]
[Black "Potkin, Vladimir"]
[Site "St. Petersburg"]
[Round "12.32"]
[Annotator "ChessBase"]
[Result "1-0"]
[Date "2018.12.28"]
[WhiteElo "2487"]
[BlackElo "2597"]
[PlyCount "63"]
[TimeControl "900+10"]

1. d4 {[%emt 0:0:0]} d5 {[%emt 0:0:0]} 2. Bf4 {[%emt 0:0:0]} Nf6 {[%emt 0:0:0]
} 3. e3 {[%emt 0:0:0]} c5 {[%emt 0:0:0]} 4. dxc5 {[%emt 0:0:0]} Nc6 {[%emt 0:0:2]} 5. Bb5 {[%emt 0:0:2]} e6 {[%emt 0:0:47]} 6. b4 {[%emt 0:0:2]
} a5 {[%emt 0:0:3]} 7. c3 {[%emt 0:0:1]} Be7 {[%emt 0:0:44]} 8. Ne2 {[%emt 0:1:19]} 0-0 {[%emt 0:0:6]} 9. Qb3 {[%emt 0:0:10]} e5 {[%emt 0:0:36]
} 10. Bg3 {[%emt 0:0:22]} Ne4 {[%emt 0:1:5]} 11. 0-0 {[%emt 0:0:0]} Be6 {[%emt 0:0:41]} 12. Rd1 {[%emt 0:0:39]} Qc7 {[%emt 0:2:3]} 13. Qb2 {[%emt 0:4:9]} f5 {[%emt 0:2:8]} 14. f3 {[%emt 0:4:55]} Nxg3 {[%emt 0:0:0]} 15. hxg3 {[%emt 0:0:5]} b6 {[%emt 0:0:9]} 16. Bxc6 {[%emt 0:0:53]} Qxc6 {[%emt 0:0:1]} 17. a4 {[%emt 0:0:38]} axb4 {[%emt 0:0:32]} 18. cxb4 {[%emt 0:0:3]
} bxc5 {[%emt 0:0:2]} 19. b5 {[%emt 0:0:3]} Qb6 {[%emt 0:0:0]} 20. a5 {[%emt 0:0:22]} Qb8 {[%emt 0:1:13]} 21. b6 {[%emt 0:0:48]} c4 {[%emt 0:1:6]
} 22. Nbc3 {[%emt 0:0:14]} Rd8 {[%emt 0:0:50]} 23. Qb5 {[%emt 0:0:7]
} d4 {[%emt 0:3:58]} 24. exd4 {[%emt 0:0:9]} exd4 {[%emt 0:0:0]} 25. Nxd4 {[%emt 0:0:3]} Rxd4 {[%emt 0:1:8]} 26. Rxd4 {[%emt 0:0:1]} Qxg3 {[%emt 0:0:24]} 27. Qc6 {[%emt 0:0:13]} Qe5 {[%emt 0:0:26]} 28. Qxa8+ {[%emt 0:0:3]
} Kf7 {[%emt 0:0:1]} 29. Rad1 {[%emt 0:0:19]} Bc5 {[%emt 0:0:0]} 30. Qd8 {[%emt 0:0:12]} Qe3+ {[%emt 0:0:12]} 31. Kf1 {[%emt 0:0:48]} Qxc3 {[%emt 0:0:5]} 32. b7 {[%emt 0:0:11]} 1-0

[Event "FIDE World Rapid-ch Open 2018"]
[White "Van Foreest, Jorden"]
[Black "Ragger, Markus"]
[Site "St. Petersburg"]
[Round "12.33"]
[Annotator "ChessBase"]
[Result "1/2-1/2"]
[Date "2018.12.28"]
[WhiteElo "2614"]
[BlackElo "2687"]
[PlyCount "77"]
[TimeControl "900+10"]

1. e4 {[%emt 0:0:0]} e5 {[%emt 0:0:0]} 2. Nf3 {[%emt 0:0:0]} Nc6 {[%emt 0:0:0]
} 3. Bc4 {[%emt 0:0:0]} Bc5 {[%emt 0:0:0]} 4. c3 {[%emt 0:0:0]} Nf6 {[%emt 0:0:0]} 5. d3 {[%emt 0:0:1]} 0-0 {[%emt 0:0:1]} 6. 0-0 d5 {[%emt 0:0:5]} 7. exd5 {[%emt 0:0:9]} Nxd5 {[%emt 0:0:2]} 8. Re1 {[%emt 0:0:40]
} Bg4 {[%emt 0:0:9]} 9. h3 {[%emt 0:1:26]} Bh5 {[%emt 0:0:3]
} 10. Nbd2 {[%emt 0:0:2]} Nb6 {[%emt 0:0:47]} 11. Bb3 {[%emt 0:0:1]} Qxd3 {[%emt 0:2:6]} 12. Nxe5 {[%emt 0:0:3]} Bxd1 {[%emt 0:0:2]} 13. Nxd3 {[%emt 0:0:17]
} Bxb3 {[%emt 0:0:2]} 14. axb3 {[%emt 0:0:39]} Be7 {[%emt 0:0:0]} 15. b4 {[%emt 0:0:20]} Rfe8 {[%emt 0:0:48]} 16. Nb3 {[%emt 0:1:7]} Rad8 {[%emt 0:2:1]} 17. b5 {[%emt 0:1:4]} Rxd3 {[%emt 0:0:12]} 18. bxc6 {[%emt 0:0:5]
} bxc6 {[%emt 0:0:3]} 19. Rxa7 {[%emt 0:0:55]} Kf8 {[%emt 0:0:0]} 20. Kf1 {[%emt 0:2:43]} Bd6 {[%emt 0:1:13]} 21. Nd4 {[%emt 0:0:7]} c5 {[%emt 0:1:21]} 22. Rxe8+ {[%emt 0:0:28]} Kxe8 {[%emt 0:0:3]} 23. Ke2 {[%emt 0:0:21]
} c4 {[%emt 0:0:1]} 24. Bd2 {[%emt 0:1:13]} Be5 {[%emt 0:0:0]} 25. Nc6 {[%emt 0:0:2]} Bd6 {[%emt 0:0:18]} 26. Ra5 {[%emt 0:1:39]} Rd5 {[%emt 0:4:0]} 27. Rxd5 {[%emt 0:0:45]} Nxd5 {[%emt 0:0:1]} 28. Be3 {[%emt 0:0:43]
} Bf4 {[%emt 0:0:54]} 29. Bd4 {[%emt 0:3:52]} Bc1 {[%emt 0:0:0]} 30. Kd1 {[%emt 0:0:14]} Bxb2 {[%emt 0:0:8]} 31. Kc2 {[%emt 0:0:1]} Ba1 {[%emt 0:1:9]} 32. Na5 {[%emt 0:0:26]} c5 {[%emt 0:0:12]} 33. Bxg7 {[%emt 0:0:2]
} f6 {[%emt 0:0:0]} 34. Nxc4 {[%emt 0:0:34]} Bxc3 35. Bh6 {[%emt 0:0:26]
} Bd4 {[%emt 0:0:4]} 36. f3 {[%emt 0:0:11]} Kd7 {[%emt 0:0:0]} 37. Bd2 {[%emt 0:0:5]} f5 {[%emt 0:0:12]} 38. g4 {[%emt 0:0:5]} Ke6 {[%emt 0:0:3]
} 39. Kd3 {[%emt 0:0:4] Ke5 Ke4+} 1/2-1/2

[Event "FIDE World Rapid-ch Open 2018"]
[White "Tomashevsky, Evgeny"]
[Black "Bazeev, German"]
[Site "St. Petersburg"]
[Round "12.34"]
[Annotator "ChessBase"]
[Result "1-0"]
[Date "2018.12.28"]
[WhiteElo "2705"]
[BlackElo "2416"]
[PlyCount "43"]
[TimeControl "900+10"]

1. c4 {[%emt 0:0:0]} e5 {[%emt 0:0:21]} 2. Nc3 {[%emt 0:0:0]} Nc6 {[%emt 0:0:5]
} 3. g3 {[%emt 0:0:8]} h5 {[%emt 0:0:1]} 4. h4 {[%emt 0:0:0]} Bb4 {[%emt 0:0:24]} 5. Bg2 {[%emt 0:0:18]} Nge7 {[%emt 0:1:18]} 6. Nf3 {[%emt 0:0:18]} Bxc3 {[%emt 0:1:24]} 7. bxc3 {[%emt 0:0:11]} d6 {[%emt 0:0:0]} 8. d4 {[%emt 0:1:13]} Bf5 {[%emt 0:0:47]} 9. d5 {[%emt 0:2:13]} Nb8 {[%emt 0:0:7]
} 10. c5 {[%emt 0:0:2]} Na6 {[%emt 0:0:25]} 11. Qa4+ {[%emt 0:0:0]} Kf8 {[%emt 0:0:32]} 12. Ba3 {[%emt 0:0:4]} f6 {[%emt 0:1:47]} 13. c6 {[%emt 0:0:30]} Qe8 {[%emt 0:1:29]} 14. cxb7 {[%emt 0:0:27]} Qxa4 {[%emt 0:0:56]
} 15. bxa8=Q+ {[%emt 0:0:4]} Bc8 {[%emt 0:0:21]} 16. Bb4 {[%emt 0:1:48]
} Nxb4 {[%emt 0:1:12]} 17. cxb4 {[%emt 0:0:1]} Qxb4+ {[%emt 0:0:0]} 18. Nd2 {[%emt 0:0:13]} Qa5 {[%emt 0:0:23]} 19. Qb8 {[%emt 0:0:46]} Kf7 {[%emt 0:0:8]} 20. Qb2 {[%emt 0:1:9]} Bf5 {[%emt 0:0:30]} 21. 0-0 {[%emt 0:0:9]
} g5 {[%emt 0:0:2]} 22. Nf3 {[%emt 0:0:30]} 1-0

[Event "FIDE World Rapid-ch Open 2018"]
[White "Levin, Evgeny A."]
[Black "Sjugirov, Sanan"]
[Site "St. Petersburg"]
[Round "12.35"]
[Annotator "ChessBase"]
[Result "1-0"]
[Date "2018.12.28"]
[WhiteElo "2516"]
[BlackElo "2663"]
[PlyCount "83"]
[TimeControl "900+10"]

1. d4 {[%emt 0:0:0]} Nf6 {[%emt 0:0:0]} 2. c4 {[%emt 0:0:0]} g6 {[%emt 0:0:0]} 3. Nc3 {[%emt 0:0:0]} d5 {[%emt 0:0:1]} 4. cxd5 {[%emt 0:0:3]} Nxd5 {[%emt 0:0:1]} 5. e4 {[%emt 0:0:6]} Nxc3 {[%emt 0:0:1]} 6. bxc3 {[%emt 0:0:1]
} Bg7 {[%emt 0:0:1]} 7. Nf3 {[%emt 0:0:3]} c5 {[%emt 0:0:1]
} 8. Be3 {[%emt 0:0:4]} 0-0 {[%emt 0:0:22]} 9. Qd2 {[%emt 0:0:9]} Nd7 {[%emt 0:0:14]
} 10. Bd3 {[%emt 0:2:5]} b6 {[%emt 0:2:46]} 11. 0-0 {[%emt 0:0:0]} e6 {[%emt 0:1:14]} 12. Bh6 {[%emt 0:1:44]} Bb7 {[%emt 0:0:15]} 13. Rfe1 {[%emt 0:0:9]} Rc8 {[%emt 0:0:12]} 14. Rad1 {[%emt 0:0:34]} Qc7 {[%emt 0:1:20]
} 15. h4 {[%emt 0:1:33]} Nf6 {[%emt 0:2:56]} 16. Rc1 {[%emt 0:0:0]} Rfd8 {[%emt 0:0:25]} 17. Bg5 {[%emt 0:0:45]} Re8 {[%emt 0:0:38]} 18. Bh6 {[%emt 0:0:13]} Qe7 {[%emt 0:1:26]} 19. Bg5 {[%emt 0:0:56]} Qf8 {[%emt 0:0:17]
} 20. Qb2 {[%emt 0:2:51]} Ng4 {[%emt 0:0:36]} 21. Bb5 {[%emt 0:0:0]} Bc6 {[%emt 0:0:13]} 22. Bxc6 {[%emt 0:0:11]} Rxc6 {[%emt 0:0:1]} 23. d5 {[%emt 0:0:45]} Rcc8 {[%emt 0:0:5]} 24. Qd2 {[%emt 0:0:27]} f6 {[%emt 0:2:5]
} 25. Bf4 {[%emt 0:0:53]} e5 {[%emt 0:0:13]} 26. Be3 {[%emt 0:0:0]} c4 {[%emt 0:0:28]} 27. Rcd1 {[%emt 0:0:15]} Qd6 {[%emt 0:0:17]} 28. Qe2 {[%emt 0:0:7]} Nxe3 {[%emt 0:0:55]} 29. Qxe3 {[%emt 0:0:1]} h5 {[%emt 0:0:20]
} 30. a4 {[%emt 0:0:8]} Kh7 {[%emt 0:0:34]} 31. Rb1 {[%emt 0:0:0]} Bh6 {[%emt 0:0:19]} 32. Qe2 {[%emt 0:0:1]} Qa3 {[%emt 0:0:27]} 33. Qc2 {[%emt 0:0:6]} Qd6 {[%emt 0:0:49]} 34. a5 {[%emt 0:0:22]} bxa5 {[%emt 0:0:53]
} 35. Rb5 {[%emt 0:0:15]} Re7 {[%emt 0:0:5]} 36. Rxa5 {[%emt 0:0:17]
} Qb6 {[%emt 0:0:14]} 37. Rea1 {[%emt 0:0:5]} Kg7 {[%emt 0:0:0]} 38. Qa4 {[%emt 0:0:23]} Qd8 {[%emt 0:0:11]} 39. Rxa7 {[%emt 0:0:4]} f5 {[%emt 0:0:9]} 40. Nxe5 {[%emt 0:0:8]} Rxa7 {[%emt 0:0:5]} 41. Qxa7+ {[%emt 0:0:1]
} Rc7 {[%emt 0:0:0]} 42. Qd4 {[%emt 0:0:5]} 1-0

[Event "FIDE World Rapid-ch Open 2018"]
[White "Hovhannisyan, Robert"]
[Black "Bocharov, Dmitry"]
[Site "St. Petersburg"]
[Round "12.36"]
[Annotator "ChessBase"]
[Result "1-0"]
[Date "2018.12.28"]
[WhiteElo "2637"]
[BlackElo "2533"]
[PlyCount "55"]
[TimeControl "900+10"]

1. e4 {[%emt 0:0:0]} c5 {[%emt 0:0:0]} 2. Nf3 {[%emt 0:0:0]} d6 {[%emt 0:0:0]} 3. d4 {[%emt 0:0:0]} cxd4 {[%emt 0:0:0]} 4. Nxd4 {[%emt 0:0:0]} Nf6 {[%emt 0:0:0]} 5. Nc3 {[%emt 0:0:0]} a6 {[%emt 0:0:0]} 6. Be2 {[%emt 0:0:2]
} e5 {[%emt 0:0:46]} 7. Nf3 {[%emt 0:0:1]} h6 {[%emt 0:0:19]} 8. Nd2 {[%emt 0:0:2]} b5 {[%emt 0:1:0]} 9. a4 {[%emt 0:0:2]} b4 {[%emt 0:0:0]} 10. Nd5 {[%emt 0:0:1]} Nxd5 {[%emt 0:0:4]} 11. exd5 {[%emt 0:0:1]
} a5 {[%emt 0:0:16]} 12. Bb5+ {[%emt 0:0:26]} Bd7 {[%emt 0:0:2]} 13. Nc4 {[%emt 0:0:33]
} Qc7 {[%emt 0:2:34]} 14. Qe2 {[%emt 0:1:3]} Ra7 {[%emt 0:0:0]} 15. f4 {[%emt 0:0:52]} f6 {[%emt 0:0:16]} 16. 0-0 {[%emt 0:0:51]} Be7 {[%emt 0:0:30]
} 17. Qh5+ {[%emt 0:1:48]} Kd8 {[%emt 0:0:5]} 18. b3 {[%emt 0:0:0]} Rb7 {[%emt 0:1:20]} 19. Be3 {[%emt 0:0:28]} Be8 {[%emt 0:4:9]} 20. Qg4 {[%emt 0:1:28]} g5 {[%emt 0:1:23]} 21. fxe5 {[%emt 0:0:15]} fxe5 {[%emt 0:0:3]
} 22. Bxe8 {[%emt 0:2:26]} Rxe8 {[%emt 0:0:3]} 23. Rf7 {[%emt 0:0:4]
} Nd7 {[%emt 0:0:11]} 24. Raf1 {[%emt 0:0:7]} Rb8 {[%emt 0:0:0]} 25. Rh7 {[%emt 0:2:2]} Qb7 {[%emt 0:0:36]} 26. Qd1 {[%emt 0:0:38]} Rf8 {[%emt 0:0:38]} 27. Rxf8+ {[%emt 0:0:28]} Bxf8 {[%emt 0:0:29]} 28. Nxa5 {[%emt 0:0:13]
} 1-0

[Event "FIDE World Rapid-ch Open 2018"]
[White "Fridman, Daniel"]
[Black "Tukhaev, Adam"]
[Site "St. Petersburg"]
[Round "12.37"]
[Annotator "ChessBase"]
[Result "1-0"]
[Date "2018.12.28"]
[WhiteElo "2633"]
[BlackElo "2527"]
[PlyCount "51"]
[TimeControl "900+10"]

1. Nf3 {[%emt 0:0:0]} g6 {[%emt 0:0:0]} 2. d4 {[%emt 0:0:1]} Bg7 {[%emt 0:0:3]
} 3. c4 {[%emt 0:0:2]} d6 {[%emt 0:0:23]} 4. g3 {[%emt 0:0:0]} Nf6 {[%emt 0:0:16]} 5. Bg2 {[%emt 0:0:2]} 0-0 {[%emt 0:0:4]} 6. Nc3 {[%emt 0:0:2]
} c5 {[%emt 0:0:12]} 7. 0-0 {[%emt 0:0:18]} Nc6 {[%emt 0:0:6]
} 8. e3 {[%emt 0:0:11]} Bg4 {[%emt 0:0:24]} 9. h3 {[%emt 0:0:17]} Bxf3 {[%emt 0:0:15]
} 10. Bxf3 {[%emt 0:0:2]} Nd7 {[%emt 0:0:6]} 11. Ne2 {[%emt 0:3:43]
} Qb6 {[%emt 0:1:10]} 12. Bxc6 {[%emt 0:2:38]} bxc6 {[%emt 0:0:0]} 13. b3 {[%emt 0:0:2]} a5 {[%emt 0:0:2]} 14. Bb2 {[%emt 0:0:35]} a4 {[%emt 0:0:20]} 15. dxc5 {[%emt 0:1:5]} Nxc5 {[%emt 0:0:7]} 16. Bxg7 {[%emt 0:0:3]
} Kxg7 {[%emt 0:0:2]} 17. Rb1 {[%emt 0:0:2]} axb3 {[%emt 0:0:0]} 18. axb3 {[%emt 0:0:2]} Qb4 {[%emt 0:1:29]} 19. Nd4 {[%emt 0:0:2]} Rfc8 {[%emt 0:0:6]} 20. h4 {[%emt 0:2:28]} Ra2 {[%emt 0:2:30]} 21. h5 {[%emt 0:0:25]
} Qb7 {[%emt 0:1:23]} 22. Qf3 {[%emt 0:0:56]} Qd7 {[%emt 0:0:0]} 23. Kg2 {[%emt 0:0:23]} Ne6 {[%emt 0:0:24]} 24. hxg6 {[%emt 0:0:47]} hxg6 {[%emt 0:0:4]} 25. Rh1 {[%emt 0:0:1]} Nxd4 {[%emt 0:0:36]} 26. Rh7+ {[%emt 0:0:6]
} 1-0

[Event "FIDE World Rapid-ch Open 2018"]
[White "Demchenko, Anton"]
[Black "Predke, Alexandr"]
[Site "St. Petersburg"]
[Round "12.41"]
[Annotator "ChessBase"]
[Result "1-0"]
[Date "2018.12.28"]
[WhiteElo "2679"]
[BlackElo "2622"]
[PlyCount "72"]
[TimeControl "900+10"]

1. e4 {[%emt 0:0:0]} c5 {[%emt 0:0:0]} 2. Nf3 {[%emt 0:0:0]} Nf6 {[%emt 0:0:0]
} 3. e5 {[%emt 0:0:3]} Nd5 {[%emt 0:0:0]} 4. Nc3 {[%emt 0:0:0]} Nxc3 {[%emt 0:0:0]} 5. dxc3 {[%emt 0:0:1]} Nc6 {[%emt 0:0:0]} 6. Bf4 {[%emt 0:0:7]} e6 {[%emt 0:0:4]} 7. Qd2 {[%emt 0:0:34]} h6 {[%emt 0:0:19]
} 8. h4 {[%emt 0:0:2]} Qc7 {[%emt 0:0:11]} 9. Be2 {[%emt 0:0:45]} a6 {[%emt 0:0:19]
} 10. c4 {[%emt 0:0:4]} Rb8 {[%emt 0:0:26]} 11. a4 {[%emt 0:0:0]} Qa5 {[%emt 0:0:7]} 12. c3 {[%emt 0:3:8]} b5 {[%emt 0:0:1]} 13. cxb5 {[%emt 0:0:12]} axb5 {[%emt 0:0:3]} 14. 0-0 {[%emt 0:0:25]} bxa4 {[%emt 0:0:13]
} 15. Qc2 {[%emt 0:1:54]} Qb6 {[%emt 0:1:22]} 16. Nd2 {[%emt 0:0:0]} Qxb2 17. Qd3 Qb6 {[%emt 0:1:32]} 18. Rxa4 {[%emt 0:0:35]} Be7 {[%emt 0:0:58]
} 19. h5 {[%emt 0:0:52]} Qc7 {[%emt 0:1:11]} 20. Nc4 {[%emt 0:0:0]} f5 {[%emt 0:4:50]} 21. g4 {[%emt 0:1:16]} 0-0 {[%emt 0:0:12]} 22. Qg3 {[%emt 0:0:56]} Rb3 {[%emt 0:2:1]} 23. Bd1 {[%emt 0:1:23]} Nd4 {[%emt 0:1:21]
} 24. Nd2 {[%emt 0:0:15]} Bb7 {[%emt 0:2:47]} 25. Nxb3 {[%emt 0:0:11]
} Qc6 {[%emt 0:0:1]} 26. f3 {[%emt 0:0:38]} Ne2+ {[%emt 0:0:0]} 27. Bxe2 {[%emt 0:0:2]} Qxa4 {[%emt 0:0:1]} 28. Nd2 {[%emt 0:1:3]} fxg4 {[%emt 0:1:19]} 29. fxg4 {[%emt 0:0:3]} Qc2 {[%emt 0:0:14]} 30. Qd3 {[%emt 0:0:42]
} Qa4 {[%emt 0:0:2]} 31. Bg3 {[%emt 0:1:1]} Rxf1+ {[%emt 0:0:0]} 32. Nxf1 {[%emt 0:0:9]} Bg5 {[%emt 0:0:8]} 33. Qg6 {[%emt 0:0:51]} Kf8 {[%emt 0:0:8]} 34. Qd3 {[%emt 0:0:12]} Kg8 35. Bf3 Ba6 {[%emt 0:0:38]} 36. Qe4 {[%emt 0:0:20]} Qa1 {[%emt 0:0:10]} 1-0

[Event "FIDE World Rapid-ch Open 2018"]
[White "Yudin, Sergei"]
[Black "Petrov, Nikita"]
[Site "St. Petersburg"]
[Round "12.42"]
[Annotator "ChessBase"]
[Result "0-1"]
[Date "2018.12.28"]
[WhiteElo "2507"]
[BlackElo "2593"]
[PlyCount "74"]
[TimeControl "900+10"]

1. e4 {[%emt 0:0:0]} e5 {[%emt 0:0:0]} 2. Nf3 {[%emt 0:0:0]} Nc6 {[%emt 0:0:0]
} 3. Bc4 {[%emt 0:0:0]} Bc5 {[%emt 0:0:0]} 4. d3 {[%emt 0:0:0]} Nf6 {[%emt 0:0:0]} 5. 0-0 {[%emt 0:0:4]} d6 {[%emt 0:0:3]} 6. c3 {[%emt 0:0:2]
} a6 {[%emt 0:0:1]} 7. Bb3 {[%emt 0:0:3]} Ba7 {[%emt 0:0:3]
} 8. h3 {[%emt 0:0:20]} h6 {[%emt 0:0:3]} 9. Re1 {[%emt 0:0:50]} g5 {[%emt 0:0:26]
} 10. Nh2 {[%emt 0:4:35]} g4 {[%emt 0:2:3]} 11. hxg4 {[%emt 0:0:0]} Rg8 {[%emt 0:0:1]} 12. g5 {[%emt 0:1:54]} hxg5 {[%emt 0:0:7]} 13. Be3 {[%emt 0:0:2]} g4 {[%emt 0:0:42]} 14. Bxa7 {[%emt 0:0:5]} Nxa7 {[%emt 0:0:33]
} 15. Nd2 {[%emt 0:0:29]} Nh7 {[%emt 0:0:46]} 16. Ndf1 {[%emt 0:0:24]
} Qh4 {[%emt 0:1:21]} 17. Re3 {[%emt 0:1:31]} Bd7 {[%emt 0:0:0]} 18. d4 {[%emt 0:0:40]} 0-0-0 {[%emt 0:2:13]} 19. dxe5 {[%emt 0:1:53]} dxe5 {[%emt 0:0:6]} 20. Qe1 {[%emt 0:0:12]} Ng5 {[%emt 0:2:35]} 21. Rd1 {[%emt 0:0:30]
} Nb5 {[%emt 0:1:37]} 22. Rd5 {[%emt 0:1:22]} Rde8 {[%emt 0:0:0]} 23. Ba4 {[%emt 0:0:13]} Bc6 {[%emt 0:0:48]} 24. Rc5 {[%emt 0:0:9]} Qh8 {[%emt 0:2:10]} 25. Ng3 {[%emt 0:0:42]} Ne6 {[%emt 0:0:4]} 26. Bd1 {[%emt 0:0:58]
} Nxc5 {[%emt 0:0:7]} 27. b4 {[%emt 0:0:12]} Ne6 {[%emt 0:0:0]} 28. a4 {[%emt 0:0:1]} Nd6 {[%emt 0:0:2]} 29. b5 {[%emt 0:0:2]} axb5 {[%emt 0:0:1]} 30. axb5 {[%emt 0:0:1]} Bxb5 {[%emt 0:0:2]} 31. c4 {[%emt 0:0:2]
} Nxc4 {[%emt 0:0:5]} 32. Rc3 {[%emt 0:0:35]} Nd4 {[%emt 0:0:0]} 33. Nhf1 {[%emt 0:0:19]} Qh4 {[%emt 0:0:14]} 34. Ne3 {[%emt 0:0:1]} Nxe3 {[%emt 0:0:10]} 35. fxe3 {[%emt 0:0:2]} Nc6 {[%emt 0:0:3]} 36. Rc5 {[%emt 0:0:6]
} Ba6 {[%emt 0:0:13]} 37. Ba4 {[%emt 0:0:1]} Rg6 {[%emt 0:0:0]} 0-1